[Event "*** MasterClass Titled Tuesday Blitz"]
[Site "Chess.com"]
[Date "2017.11.07"]
[Round "4"]
[White "HarutyunianTigranK"]
[Black "bugsbunny444"]
[Result "1-0"]
[WhiteElo "2569"]
[BlackElo "2415"]
[TimeControl "180+2"]
[EndTime "15:02:17 PST"]
[Termination "HarutyunianTigranK won by resignation"]

1. c4 {[%clk 0:03:01.9]} 1... b6 {[%clk 0:03:00.8]} 2. Nc3 {[%clk 0:03:02.7]}
2... Bb7 {[%clk 0:03:02.7]} 3. Nf3 {[%clk 0:02:59.2]} 3... e6 {[%clk 0:03:03.6]}
4. e4 {[%clk 0:02:56.6]} 4... Nf6 {[%clk 0:03:04.2]} 5. e5 {[%clk 0:02:55.5]}
5... Ne4 {[%clk 0:03:05]} 6. d3 {[%clk 0:02:55.1]} 6... Nxc3 {[%clk 0:03:00.8]}
7. bxc3 {[%clk 0:02:57]} 7... d6 {[%clk 0:02:59.3]} 8. exd6 {[%clk 0:02:55]}
8... Bxd6 {[%clk 0:02:58.3]} 9. Be2 {[%clk 0:02:55.6]} 9... O-O {[%clk
0:02:53.3]} 10. O-O {[%clk 0:02:54.6]} 10... c5 {[%clk 0:02:52.6]} 11. d4 {[%clk
0:02:28.3]} 11... Be7 {[%clk 0:02:34.3]} 12. Bf4 {[%clk 0:02:27.2]} 12... Bf6
{[%clk 0:02:23.8]} 13. Ne5 {[%clk 0:02:14.9]} 13... Nd7 {[%clk 0:02:18.3]} 14.
Ng4 {[%clk 0:02:12.2]} 14... Bg5 {[%clk 0:02:11.2]} 15. Bf3 {[%clk 0:02:08.2]}
15... Bxf3 {[%clk 0:01:49.9]} 16. Qxf3 {[%clk 0:02:10.1]} 16... Bxf4 {[%clk
0:01:46.9]} 17. Qxf4 {[%clk 0:02:12]} 17... cxd4 {[%clk 0:01:42.8]} 18. cxd4
{[%clk 0:02:12.4]} 18... Rc8 {[%clk 0:01:44.5]} 19. Rac1 {[%clk 0:02:12.9]}
19... Qc7 {[%clk 0:01:45.1]} 20. Qg5 {[%clk 0:02:11.1]} 20... Qd8 {[%clk
0:01:26.8]} 21. Qf4 {[%clk 0:02:07]} 21... Qh4 {[%clk 0:01:20.5]} 22. Rc3 {[%clk
0:02:03]} 22... e5 {[%clk 0:00:39.5]} 23. Qf5 {[%clk 0:01:49.8]} 23... h5 {[%clk
0:00:18.6]} 24. Nxe5 {[%clk 0:01:18.5]} 24... Qxd4 {[%clk 0:00:19.2]} 25. Rh3
{[%clk 0:01:07.9]} 25... Nxe5 {[%clk 0:00:17.8]} 26. Qxh5 {[%clk 0:01:08.8]}
26... f6 {[%clk 0:00:12.6]} 27. Rd1 {[%clk 0:01:09.8]} 27... Qg4 {[%clk
0:00:10.4]} 28. Qh7+ {[%clk 0:01:02]} 28... Kf7 {[%clk 0:00:11.9]} 29. Qc2
{[%clk 0:00:55.4]} 29... Rxc4 {[%clk 0:00:11]} 30. Qb1 {[%clk 0:00:56.6]} 30...
Rfc8 {[%clk 0:00:10.7]} 31. Re1 {[%clk 0:00:45.7]} 31... Qf4 {[%clk 0:00:10.1]}
32. Qb3 {[%clk 0:00:44.6]} 32... Kf8 {[%clk 0:00:06.5]} 33. Rh8+ {[%clk
0:00:43.3]} 33... Ke7 {[%clk 0:00:06.4]} 34. Qa3+ {[%clk 0:00:44.7]} 34... Ke6
{[%clk 0:00:04.1]} 35. Qh3+ {[%clk 0:00:43.9]} 35... Qg4 {[%clk 0:00:04.3]} 36.
Qxg4+ {[%clk 0:00:43.7]} 36... Rxg4 {[%clk 0:00:04.2]} 37. Rxc8 {[%clk
0:00:45.2]} 37... Ra4 {[%clk 0:00:05.8]} 38. Rc2 {[%clk 0:00:43.4]} 38... Kf5
{[%clk 0:00:06.8]} 39. h3 {[%clk 0:00:43.8]} 39... g5 {[%clk 0:00:08.1]} 40. Kh2
{[%clk 0:00:44]} 40... b5 {[%clk 0:00:09.1]} 41. Rb1 {[%clk 0:00:42.5]} 41... a6
{[%clk 0:00:09.8]} 42. Rb3 {[%clk 0:00:44]} 42... Kf4 {[%clk 0:00:07.3]} 43. Rg3
{[%clk 0:00:41.8]} 43... b4 {[%clk 0:00:05.7]} 44. Rd2 {[%clk 0:00:38]} 44... a5
{[%clk 0:00:06.4]} 45. Rd4+ {[%clk 0:00:38.6]} 45... Kf5 {[%clk 0:00:07.9]} 46.
a3 {[%clk 0:00:38.5]} 46... Rxa3 {[%clk 0:00:05.9]} 47. Rxa3 {[%clk 0:00:38.4]}
47... bxa3 {[%clk 0:00:07.8]} 48. Ra4 {[%clk 0:00:39.8]} 48... Nc6 {[%clk
0:00:04.9]} 49. Rxa3 {[%clk 0:00:39.6]} 49... Ke4 {[%clk 0:00:06.8]} 50. Kg3
{[%clk 0:00:38]} 50... Kd4 {[%clk 0:00:08.2]} 51. Kg4 {[%clk 0:00:39.1]} 51...
Kc4 {[%clk 0:00:08.5]} 52. Kf5 {[%clk 0:00:40.3]} 52... Kb4 {[%clk 0:00:09.7]}
53. Ra1 {[%clk 0:00:41.3]} 53... a4 {[%clk 0:00:08.9]} 54. Kxf6 {[%clk
0:00:42.4]} 54... a3 {[%clk 0:00:09.4]} 55. Kxg5 {[%clk 0:00:43.6]} 1-0

[Event "*** MasterClass Titled Tuesday Blitz"]
[Site "Chess.com"]
[Date "2017.11.07"]
[Round "4"]
[White "Hanging_pointer"]
[Black "thegreendog"]
[Result "1-0"]
[WhiteElo "2326"]
[BlackElo "2343"]
[TimeControl "180+2"]
[EndTime "15:02:42 PST"]
[Termination "Hanging_pointer won by resignation"]

1. e4 {[%clk 0:03:01]} 1... c5 {[%clk 0:02:59.9]} 2. Nf3 {[%clk 0:03:01.2]} 2...
d6 {[%clk 0:02:57.4]} 3. d4 {[%clk 0:03:01.8]} 3... cxd4 {[%clk 0:02:58.4]} 4.
Nxd4 {[%clk 0:03:03.7]} 4... Nf6 {[%clk 0:02:59.3]} 5. Nc3 {[%clk 0:03:05.1]}
5... g6 {[%clk 0:02:59.8]} 6. Be3 {[%clk 0:03:05.6]} 6... Nc6 {[%clk 0:03:01]}
7. f3 {[%clk 0:03:05.1]} 7... Bg7 {[%clk 0:03:02.4]} 8. Qd2 {[%clk 0:03:06.3]}
8... O-O {[%clk 0:03:03.7]} 9. O-O-O {[%clk 0:03:07.8]} 9... d5 {[%clk
0:03:05.1]} 10. exd5 {[%clk 0:03:07.4]} 10... Nxd5 {[%clk 0:03:06.3]} 11. Nxc6
{[%clk 0:03:08.8]} 11... bxc6 {[%clk 0:03:08.2]} 12. Bd4 {[%clk 0:03:10.1]}
12... Nxc3 {[%clk 0:03:09.5]} 13. Qxc3 {[%clk 0:03:06.9]} 13... Bh6+ {[%clk
0:03:10.7]} 14. Be3 {[%clk 0:03:07.8]} 14... Bxe3+ {[%clk 0:03:11.8]} 15. Qxe3
{[%clk 0:03:08.3]} 15... Qb6 {[%clk 0:03:12.7]} 16. Qxe7 {[%clk 0:03:09.2]}
16... Be6 {[%clk 0:03:14]} 17. Qa3 {[%clk 0:03:07.3]} 17... Rfd8 {[%clk
0:03:15.2]} 18. Bd3 {[%clk 0:03:08.3]} 18... Qe3+ {[%clk 0:03:16.3]} 19. Kb1
{[%clk 0:03:08.5]} 19... Rd5 {[%clk 0:03:17.2]} 20. Rhe1 {[%clk 0:02:51]} 20...
Qb6 {[%clk 0:03:16.1]} 21. b3 {[%clk 0:02:48.3]} 21... Rad8 {[%clk 0:03:17]} 22.
Qc1 {[%clk 0:02:24.7]} 22... a5 {[%clk 0:02:54.6]} 23. Be4 {[%clk 0:01:54.2]}
23... Rd4 {[%clk 0:02:52.1]} 24. Rxd4 {[%clk 0:01:52.1]} 24... Rxd4 {[%clk
0:02:53.6]} 25. Qe3 {[%clk 0:01:42.4]} 25... c5 {[%clk 0:02:40.1]} 26. h4 {[%clk
0:01:31.4]} 26... a4 {[%clk 0:02:37.6]} 27. h5 {[%clk 0:01:18.7]} 27... Qd6
{[%clk 0:02:11.4]} 28. hxg6 {[%clk 0:01:11.4]} 28... a3 {[%clk 0:01:22.7]} 29.
gxh7+ {[%clk 0:00:45.2]} 29... Kh8 {[%clk 0:01:23]} 30. c3 {[%clk 0:00:34.4]}
30... Rd1+ {[%clk 0:01:05.6]} 31. Kc2 {[%clk 0:00:30]} 31... Rxe1 {[%clk
0:00:48.5]} 32. Qxe1 {[%clk 0:00:31.9]} 32... f5 {[%clk 0:00:47.4]} 33. Bd3
{[%clk 0:00:27.6]} 33... Kxh7 {[%clk 0:00:43.2]} 34. g4 {[%clk 0:00:28.6]} 34...
Kg7 {[%clk 0:00:26.1]} 35. gxf5 {[%clk 0:00:28.6]} 35... Qh2+ {[%clk 0:00:26.8]}
36. Qd2 {[%clk 0:00:29.3]} 36... Qxd2+ {[%clk 0:00:25.9]} 37. Kxd2 {[%clk
0:00:31.1]} 37... Bxb3 {[%clk 0:00:26.7]} 38. Bb1 {[%clk 0:00:22.5]} 38... Bd5
{[%clk 0:00:25]} 39. Ke3 {[%clk 0:00:11.1]} 39... Kf6 {[%clk 0:00:26]} 40. f4
{[%clk 0:00:11.1]} 40... Bc4 {[%clk 0:00:26.4]} 41. Ke4 {[%clk 0:00:09.3]} 41...
Bf7 {[%clk 0:00:20.9]} 42. Kd3 {[%clk 0:00:09.5]} 42... Kxf5 {[%clk 0:00:19.6]}
43. c4 {[%clk 0:00:06.5]} 43... Kxf4 {[%clk 0:00:20.3]} 44. Kc3 {[%clk
0:00:07.6]} 44... Ke3 {[%clk 0:00:21.2]} 45. Bf5 {[%clk 0:00:07.3]} 45... Ke2
{[%clk 0:00:18.9]} 46. Be4 {[%clk 0:00:05]} 46... Ke3 {[%clk 0:00:19.9]} 47. Bd5
{[%clk 0:00:05.5]} 47... Bg6 {[%clk 0:00:20.1]} 48. Kb3 {[%clk 0:00:06.3]} 48...
Kd3 {[%clk 0:00:18.4]} 49. Kxa3 {[%clk 0:00:07.2]} 49... Kc3 {[%clk 0:00:19.8]}
50. Ka4 {[%clk 0:00:07.9]} 50... Bb1 {[%clk 0:00:20.5]} 51. a3 {[%clk
0:00:08.6]} 51... Ba2 {[%clk 0:00:21.5]} 52. Kb5 {[%clk 0:00:08.8]} 52... Kb3
{[%clk 0:00:21.4]} 53. a4 {[%clk 0:00:09.7]} 53... Ka3 {[%clk 0:00:22.6]} 54. a5
{[%clk 0:00:10.9]} 54... Bb3 {[%clk 0:00:23]} 55. a6 {[%clk 0:00:11.6]} 55...
Ba4+ {[%clk 0:00:24.2]} 56. Kb6 {[%clk 0:00:12.9]} 56... Kb4 {[%clk 0:00:24.9]}
57. a7 {[%clk 0:00:13.8]} 1-0

[Event "*** MasterClass Titled Tuesday Blitz"]
[Site "Chess.com"]
[Date "2017.11.07"]
[Round "4"]
[White "MateusViageiro"]
[Black "cheese111"]
[Result "0-1"]
[WhiteElo "2261"]
[BlackElo "2413"]
[TimeControl "180+2"]
[EndTime "15:02:44 PST"]
[Termination "cheese111 won by resignation"]

1. e4 {[%clk 0:03:01.9]} 1... d5 {[%clk 0:02:58.2]} 2. exd5 {[%clk 0:03:01.3]}
2... Nf6 {[%clk 0:02:59.7]} 3. Bb5+ {[%clk 0:02:59.5]} 3... Bd7 {[%clk 0:03:00]}
4. Bc4 {[%clk 0:02:57.7]} 4... Bg4 {[%clk 0:03:00]} 5. f3 {[%clk 0:02:57.1]}
5... Bf5 {[%clk 0:03:01.4]} 6. Nc3 {[%clk 0:02:56.2]} 6... Nbd7 {[%clk
0:03:02.9]} 7. d4 {[%clk 0:02:53.4]} 7... Nb6 {[%clk 0:03:03.2]} 8. Bb5+ {[%clk
0:02:52.2]} 8... Bd7 {[%clk 0:03:04]} 9. Bd3 {[%clk 0:02:47.6]} 9... Nfxd5
{[%clk 0:03:00.6]} 10. Nxd5 {[%clk 0:02:45.3]} 10... Nxd5 {[%clk 0:03:02.5]} 11.
Ne2 {[%clk 0:02:45.3]} 11... e6 {[%clk 0:03:02.9]} 12. O-O {[%clk 0:02:44.3]}
12... Bd6 {[%clk 0:03:03.2]} 13. c4 {[%clk 0:02:38.3]} 13... Nf6 {[%clk
0:03:03.3]} 14. Qc2 {[%clk 0:02:27.8]} 14... c6 {[%clk 0:03:01.6]} 15. Ng3
{[%clk 0:02:22.6]} 15... Qc7 {[%clk 0:02:52.6]} 16. Qf2 {[%clk 0:02:12.4]} 16...
h5 {[%clk 0:02:34.6]} 17. f4 {[%clk 0:02:06.2]} 17... O-O-O {[%clk 0:02:28.7]}
18. Ne4 {[%clk 0:01:52.6]} 18... Nxe4 {[%clk 0:02:27.9]} 19. Bxe4 {[%clk
0:01:52.5]} 19... h4 {[%clk 0:02:02.1]} 20. c5 {[%clk 0:01:51.9]} 20... Be7
{[%clk 0:02:02.6]} 21. b4 {[%clk 0:01:49]} 21... Rdg8 {[%clk 0:01:45.7]} 22. a4
{[%clk 0:01:43.6]} 22... f5 {[%clk 0:01:46.1]} 23. Bf3 {[%clk 0:01:39.8]} 23...
g5 {[%clk 0:01:45.2]} 24. fxg5 {[%clk 0:01:39]} 24... Bxg5 {[%clk 0:01:47.1]}
25. b5 {[%clk 0:01:34.7]} 25... h3 {[%clk 0:01:35.7]} 26. Bxg5 {[%clk
0:01:30.8]} 26... Rxg5 {[%clk 0:01:29.1]} 27. g3 {[%clk 0:01:24.5]} 27... f4
{[%clk 0:01:30.1]} 28. g4 {[%clk 0:01:21.8]} 28... e5 {[%clk 0:01:30.3]} 29.
bxc6 {[%clk 0:01:17.4]} 29... bxc6 {[%clk 0:01:26.1]} 30. dxe5 {[%clk
0:01:11.4]} 30... Bxg4 {[%clk 0:01:23.7]} 31. Kh1 {[%clk 0:01:09.5]} 31... Bxf3+
{[%clk 0:01:12.9]} 32. Qxf3 {[%clk 0:01:09.9]} 32... Rxe5 {[%clk 0:00:57.1]} 33.
Qxf4 {[%clk 0:01:10]} 33... Rxc5 {[%clk 0:00:55]} 34. Qg4+ {[%clk 0:01:04.1]}
34... Qd7 {[%clk 0:00:52.7]} 35. Qxd7+ {[%clk 0:01:02.7]} 35... Kxd7 {[%clk
0:00:54.6]} 36. Rf7+ {[%clk 0:01:03.3]} 36... Ke6 {[%clk 0:00:53.4]} 37. Rxa7
{[%clk 0:01:02.1]} 37... Rc2 {[%clk 0:00:47.8]} 38. a5 {[%clk 0:00:51.2]} 38...
Rd8 {[%clk 0:00:31.2]} 39. Rh7 {[%clk 0:00:48.4]} 39... Rd3 {[%clk 0:00:29.7]}
40. a6 {[%clk 0:00:45.7]} 40... Rcd2 {[%clk 0:00:19]} 41. Re1+ {[%clk
0:00:42.3]} 41... Kd6 {[%clk 0:00:18.5]} 42. a7 {[%clk 0:00:40.4]} 42... Rd1
{[%clk 0:00:17.5]} 43. Re7 {[%clk 0:00:35.5]} 43... Rxe1+ {[%clk 0:00:16.8]} 44.
Rxe1 {[%clk 0:00:33.1]} 44... Ra3 {[%clk 0:00:17.7]} 45. Kg1 {[%clk 0:00:32.9]}
45... Rxa7 {[%clk 0:00:17.4]} 46. Re3 {[%clk 0:00:33.8]} 46... Rh7 {[%clk
0:00:15.7]} 47. Kf2 {[%clk 0:00:33.4]} 47... c5 {[%clk 0:00:16.4]} 48. Kg3
{[%clk 0:00:30.6]} 48... c4 {[%clk 0:00:15.4]} 49. Re8 {[%clk 0:00:27.4]} 49...
Kc5 {[%clk 0:00:15.3]} 50. Re3 {[%clk 0:00:20.4]} 50... Kb4 {[%clk 0:00:15.5]}
51. Kg4 {[%clk 0:00:20.4]} 51... c3 {[%clk 0:00:15.9]} 52. Rxh3 {[%clk
0:00:20.6]} 52... Rxh3 {[%clk 0:00:16]} 53. Kxh3 {[%clk 0:00:20.5]} 53... c2
{[%clk 0:00:17.9]} 54. Kg4 {[%clk 0:00:21.3]} 54... c1=Q {[%clk 0:00:19.8]} 55.
h4 {[%clk 0:00:22.4]} 55... Qh6 {[%clk 0:00:20.3]} 56. h5 {[%clk 0:00:22.9]}
56... Kc5 {[%clk 0:00:22.2]} 0-1

[Event "*** MasterClass Titled Tuesday Blitz"]
[Site "Chess.com"]
[Date "2017.11.07"]
[Round "4"]
[White "Ar4uha"]
[Black "StoreySniper"]
[Result "1-0"]
[WhiteElo "2429"]
[BlackElo "2286"]
[TimeControl "180+2"]
[EndTime "15:02:53 PST"]
[Termination "Ar4uha won by resignation"]

1. e4 {[%clk 0:03:01.9]} 1... g6 {[%clk 0:03:00.1]} 2. d4 {[%clk 0:02:59.8]}
2... Bg7 {[%clk 0:03:01.5]} 3. Nc3 {[%clk 0:02:57.2]} 3... c5 {[%clk 0:03:02.7]}
4. dxc5 {[%clk 0:02:57.8]} 4... Bxc3+ {[%clk 0:03:03.8]} 5. bxc3 {[%clk
0:02:58.5]} 5... Nf6 {[%clk 0:03:04.8]} 6. e5 {[%clk 0:02:46]} 6... Ne4 {[%clk
0:03:05.1]} 7. Qd4 {[%clk 0:02:45.7]} 7... Qa5 {[%clk 0:03:04.9]} 8. Bd2 {[%clk
0:02:44.4]} 8... Nxc5 {[%clk 0:02:44.2]} 9. Nf3 {[%clk 0:02:44.9]} 9... Nc6
{[%clk 0:02:44]} 10. Qh4 {[%clk 0:02:41.7]} 10... Ne6 {[%clk 0:02:35.1]} 11. Qe4
{[%clk 0:02:39]} 11... b6 {[%clk 0:02:30.9]} 12. Bc4 {[%clk 0:02:37.5]} 12...
Bb7 {[%clk 0:02:31.3]} 13. O-O {[%clk 0:02:32.2]} 13... Qa4 {[%clk 0:02:26.3]}
14. Qd3 {[%clk 0:02:28.4]} 14... Rd8 {[%clk 0:01:54.1]} 15. Bd5 {[%clk
0:02:17.8]} 15... Qg4 {[%clk 0:01:40.4]} 16. h3 {[%clk 0:02:16.2]} 16... Qh5
{[%clk 0:01:40.5]} 17. c4 {[%clk 0:02:14.8]} 17... g5 {[%clk 0:01:18.5]} 18. Qf5
{[%clk 0:02:03.7]} 18... Ncd4 {[%clk 0:00:58.6]} 19. Nxd4 {[%clk 0:02:04.5]}
19... Nxd4 {[%clk 0:00:58.8]} 20. Qe4 {[%clk 0:01:39.5]} 20... Nc6 {[%clk
0:00:32.1]} 21. f4 {[%clk 0:01:32.2]} 21... e6 {[%clk 0:00:30.6]} 22. fxg5
{[%clk 0:01:33.3]} 22... exd5 {[%clk 0:00:26.6]} 23. cxd5 {[%clk 0:01:35.2]}
23... Ne7 {[%clk 0:00:27.1]} 24. c4 {[%clk 0:01:35.2]} 24... b5 {[%clk
0:00:20.2]} 25. Bb4 {[%clk 0:01:32.3]} 25... Qxg5 {[%clk 0:00:17.5]} 26. Rf6
{[%clk 0:01:20.4]} 26... bxc4 {[%clk 0:00:14.7]} 27. Bxe7 {[%clk 0:01:21.6]}
27... Kxe7 {[%clk 0:00:15.7]} 28. Raf1 {[%clk 0:01:23.3]} 28... Rdf8 {[%clk
0:00:15.1]} 29. Qxc4 {[%clk 0:01:21.6]} 29... Qxe5 {[%clk 0:00:13.3]} 30. Qb4+
{[%clk 0:00:52.4]} 30... Kd8 {[%clk 0:00:14.4]} 31. Qxb7 {[%clk 0:00:54]} 31...
Qc7 {[%clk 0:00:15.4]} 32. Qb4 {[%clk 0:00:43]} 32... Rhg8 {[%clk 0:00:14.6]}
33. Rxf7 {[%clk 0:00:19.6]} 33... Rxf7 {[%clk 0:00:15.1]} 34. Rxf7 {[%clk
0:00:21.5]} 34... Qg3 {[%clk 0:00:15]} 35. Rf8+ {[%clk 0:00:14.3]} 35... Rxf8
{[%clk 0:00:15.5]} 36. Qxf8+ {[%clk 0:00:16]} 36... Kc7 {[%clk 0:00:17.2]} 37.
Qc5+ {[%clk 0:00:17.9]} 37... Kb7 {[%clk 0:00:18]} 38. d6 {[%clk 0:00:18.4]}
38... Qe1+ {[%clk 0:00:17.4]} 39. Kh2 {[%clk 0:00:19.3]} 39... Qe6 {[%clk
0:00:15.9]} 40. a4 {[%clk 0:00:17.6]} 40... a5 {[%clk 0:00:11.6]} 41. Qb5+
{[%clk 0:00:13.8]} 41... Kc8 {[%clk 0:00:12.5]} 42. Qa6+ {[%clk 0:00:14.1]}
42... Kb8 {[%clk 0:00:13.3]} 43. Qb6+ {[%clk 0:00:15.5]} 43... Ka8 {[%clk
0:00:13.9]} 44. Qxa5+ {[%clk 0:00:16.7]} 44... Kb7 {[%clk 0:00:15.5]} 45. Qb4+
{[%clk 0:00:18]} 45... Ka7 {[%clk 0:00:16.5]} 46. Qc5+ {[%clk 0:00:19]} 46...
Ka8 {[%clk 0:00:16.1]} 47. a5 {[%clk 0:00:20.9]} 47... h5 {[%clk 0:00:16.4]} 48.
a6 {[%clk 0:00:22.1]} 48... Qb3 {[%clk 0:00:09.4]} 49. h4 {[%clk 0:00:13.4]}
49... Qb6 {[%clk 0:00:04.7]} 50. Qc8+ {[%clk 0:00:12.9]} 50... Ka7 {[%clk
0:00:05.9]} 51. Qb7+ {[%clk 0:00:13.7]} 51... Qxb7 {[%clk 0:00:06.7]} 52. axb7
{[%clk 0:00:15.6]} 52... Kxb7 {[%clk 0:00:08.5]} 53. g4 {[%clk 0:00:17.5]} 53...
Kc6 {[%clk 0:00:10]} 54. gxh5 {[%clk 0:00:15.2]} 54... Kxd6 {[%clk 0:00:11.8]}
55. h6 {[%clk 0:00:17.1]} 55... Ke6 {[%clk 0:00:13.2]} 56. h7 {[%clk 0:00:19]}
56... Kf7 {[%clk 0:00:14.5]} 57. h8=Q {[%clk 0:00:20.9]} 1-0

[Event "*** MasterClass Titled Tuesday Blitz"]
[Site "Chess.com"]
[Date "2017.11.07"]
[Round "4"]
[White "GM_dmitrij"]
[Black "MartinZumsande"]
[Result "1-0"]
[WhiteElo "2611"]
[BlackElo "2442"]
[TimeControl "180+2"]
[EndTime "15:02:54 PST"]
[Termination "GM_dmitrij won by resignation"]

1. e4 {[%clk 0:03:01.9]} 1... e6 {[%clk 0:03:01]} 2. d4 {[%clk 0:03:02.4]} 2...
d5 {[%clk 0:03:02.6]} 3. exd5 {[%clk 0:03:03.4]} 3... exd5 {[%clk 0:03:03.1]} 4.
Nf3 {[%clk 0:03:05]} 4... Nf6 {[%clk 0:03:04.4]} 5. Bd3 {[%clk 0:03:06]} 5... c5
{[%clk 0:03:05.8]} 6. dxc5 {[%clk 0:03:04.2]} 6... Bxc5 {[%clk 0:03:06.2]} 7.
O-O {[%clk 0:03:06.1]} 7... O-O {[%clk 0:03:07.5]} 8. Nc3 {[%clk 0:03:06.6]}
8... Nc6 {[%clk 0:03:07.3]} 9. Bg5 {[%clk 0:03:07.4]} 9... Be6 {[%clk
0:03:08.1]} 10. Qd2 {[%clk 0:03:02.9]} 10... Be7 {[%clk 0:03:05]} 11. Rfe1
{[%clk 0:03:00]} 11... a6 {[%clk 0:02:53.2]} 12. Ne2 {[%clk 0:02:56.8]} 12...
Ne4 {[%clk 0:02:48.9]} 13. Bxe7 {[%clk 0:02:32.8]} 13... Nxd2 {[%clk 0:02:29.2]}
14. Bxd8 {[%clk 0:02:33.7]} 14... Nxf3+ {[%clk 0:02:30.4]} 15. gxf3 {[%clk
0:02:35.4]} 15... Rfxd8 {[%clk 0:02:31.2]} 16. Nf4 {[%clk 0:02:34.5]} 16... Rd6
{[%clk 0:02:22.7]} 17. Rad1 {[%clk 0:02:30.9]} 17... Rad8 {[%clk 0:02:23.4]} 18.
a3 {[%clk 0:02:28.5]} 18... g6 {[%clk 0:02:17.3]} 19. Rd2 {[%clk 0:02:24.2]}
19... Kg7 {[%clk 0:02:17]} 20. Bf1 {[%clk 0:02:15.3]} 20... Kf6 {[%clk 0:02:16]}
21. Red1 {[%clk 0:02:14.6]} 21... Ne5 {[%clk 0:02:14]} 22. Be2 {[%clk
0:02:15.3]} 22... h5 {[%clk 0:02:00]} 23. Kg2 {[%clk 0:02:12.3]} 23... Ke7
{[%clk 0:01:57.5]} 24. c3 {[%clk 0:02:09.3]} 24... Nc6 {[%clk 0:01:55]} 25. Bd3
{[%clk 0:01:35.8]} 25... d4 {[%clk 0:01:50.6]} 26. c4 {[%clk 0:01:37]} 26... Ne5
{[%clk 0:01:45.5]} 27. b3 {[%clk 0:01:38.3]} 27... b5 {[%clk 0:01:27.9]} 28. c5
{[%clk 0:01:15.3]} 28... R6d7 {[%clk 0:01:16.6]} 29. Re1 {[%clk 0:01:05.9]}
29... Kf6 {[%clk 0:01:14.8]} 30. Nxe6 {[%clk 0:00:51.4]} 30... fxe6 {[%clk
0:01:13.6]} 31. b4 {[%clk 0:00:52.8]} 31... Nc4 {[%clk 0:01:01.7]} 32. Rc2
{[%clk 0:00:53.4]} 32... Nxa3 {[%clk 0:00:59.1]} 33. Ra2 {[%clk 0:00:54.1]}
33... Nc4 {[%clk 0:00:58.4]} 34. Rxa6 {[%clk 0:00:55]} 34... Re7 {[%clk
0:00:54.9]} 35. Re2 {[%clk 0:00:46.1]} 35... Rb8 {[%clk 0:00:42.4]} 36. f4
{[%clk 0:00:46.6]} 36... Kf7 {[%clk 0:00:31.4]} 37. h4 {[%clk 0:00:47.5]} 37...
Rd8 {[%clk 0:00:21.4]} 38. Kg3 {[%clk 0:00:45.6]} 38... Rb8 {[%clk 0:00:20.5]}
39. Rea2 {[%clk 0:00:44.4]} 39... Kf6 {[%clk 0:00:20.5]} 40. Rc6 {[%clk
0:00:43.3]} 40... Kf7 {[%clk 0:00:17.9]} 41. Rca6 {[%clk 0:00:44.4]} 41... Kf6
{[%clk 0:00:18.4]} 42. Ra8 {[%clk 0:00:45.5]} 42... Rxa8 {[%clk 0:00:18.1]} 43.
Rxa8 {[%clk 0:00:47.4]} 43... Rd7 {[%clk 0:00:18.5]} 44. Kf3 {[%clk 0:00:37.1]}
44... Nd2+ {[%clk 0:00:17]} 45. Ke2 {[%clk 0:00:36]} 45... Nc4 {[%clk
0:00:18.1]} 46. Rg8 {[%clk 0:00:36.2]} 46... e5 {[%clk 0:00:14.7]} 47. Rxg6+
{[%clk 0:00:36.6]} 47... Kf7 {[%clk 0:00:16.2]} 48. fxe5 {[%clk 0:00:32.8]}
48... Nxe5 {[%clk 0:00:18.1]} 49. Rh6 {[%clk 0:00:33.7]} 49... Kg7 {[%clk
0:00:09.1]} 50. Rh7+ {[%clk 0:00:34.4]} 50... Kf6 {[%clk 0:00:10.4]} 51. Rxd7
{[%clk 0:00:34.6]} 51... Nxd7 {[%clk 0:00:12.3]} 52. Bxb5 {[%clk 0:00:36]} 52...
Ne5 {[%clk 0:00:12.9]} 53. Bd3 {[%clk 0:00:36.8]} 53... Ke6 {[%clk 0:00:13.9]}
54. Be4 {[%clk 0:00:32.6]} 54... Ng4 {[%clk 0:00:14.4]} 55. b5 {[%clk
0:00:32.9]} 55... Nf6 {[%clk 0:00:15.6]} 56. b6 {[%clk 0:00:32.2]} 56... Nd7
{[%clk 0:00:15.9]} 57. b7 {[%clk 0:00:31.9]} 57... Nb8 {[%clk 0:00:15.7]} 58. c6
{[%clk 0:00:33]} 58... Kd6 {[%clk 0:00:16.1]} 59. Kd3 {[%clk 0:00:34.5]} 59...
Kc7 {[%clk 0:00:17.6]} 60. Kxd4 {[%clk 0:00:35.8]} 60... Na6 {[%clk 0:00:19.5]}
61. f4 {[%clk 0:00:37]} 61... Nb4 {[%clk 0:00:19.9]} 62. f5 {[%clk 0:00:38.3]}
62... Na2 {[%clk 0:00:21.2]} 63. f6 {[%clk 0:00:39.5]} 1-0